Workbook

Sheet COVER
B12: PRICING INFORMATION
B14: REQUEST FOR BIDS
B16: RFB NO.
B18: SITENAME | C18: Tutuka Power Plant - Solar Photovoltaic (Output:28.93MW)
B20: Design, Engineering, Supply, Construction, Installation, Testing, Commissioning, Operation and Maintenance (O&M) 28.93 MW Solar PV Facility at Tutuka Power Station, Mpumalanga
B22: BIDDER’S NAME:
B25: Design, Engineering, Supply, Construction, Installation, Testing, Commissioning Cost (excluding VAT) | C25: ='Typical Activity Schedule'!M240 -> R 0.00
B26: Operating and Maintenance Cost (O&M) (excluding VAT) | C26: R 0.00
B27: THE PRICE: IN RAND (excluding VAT) Grand TOTALS
B28: Value Added Tax (VAT) Currently 15% | C28: =C25+C27 -> R 0.00
B29: TOTAL RAND VALUE: IN RAND (Including VAT)
B30: TOTAL RAND VALUE IN WORDS (Including VAT)
B33: DATE :
B35: SIGNATURE :
B37: DESIGNATION :

Sheet PREAMBLE
B1: ='COVER '!C18 -> Tutuka Power Plant - Solar Photovoltaic (Output:28.93MW)
B2: RFB No. | D2: =IF('COVER '!C16="","",'COVER '!C16) ->  | E2: =IF('COVER '!B17="","",'COVER '!B17) -> 
B3: BIDDER'S NAME: | D3: =IF('COVER '!C22="","",'COVER '!C22) -> 
B5: PREAMBLE TO PRICE SCHEDULE
B6: 1 | C6: SCOPE GENERALLY
B7: 1.1 | C7: The price activity schedule is for the Engineering, Procurement and Construction (EPC) , on a lump-sum basis under an EPC, It should include all studies, permitting, design, engineering, procurement, manufacturing, deliveries to Site, execution, erection, commissioning, testing, completion, operation and maintenance (O&M) until the end of the Defects Liability Period, making good defects and warranty cover during the Defects Liability Period, and other works necessary to construct a solar photovoltaic (PV) power Plant , the access road, the Site facilities and any additional infrastructure as per EMPLOYER’S REQUIREMENTS
B8: 1.2 | C8: The contract price shall be based upon the Bid that offers required capacity . The provided activity schedule shall be deemed as a general guide only/ typical example. The Bidder's may provide their own preferred breakdown as per Employer's requirements. The Contractor shall use other documents provided as reference. The prices provided shall include the cost of all required equipment, tools, material, labour, and supervision for the EPC of a complete commissioned component or system. Any expected wastage of materials and components shall be included in the pricing provided.
B9: 2 | C9: UNIT OF MEASUREMENT
B10: 2.1 | C10: Units of measurement or quantity i.e., Number (no), Lump Sum (Sum) or Item, are associated as applicable with the items as listed in the Activity Schedules.
B11: 3 | C11: DOCUMENTS SHALL BE MUTUALLY SELF EXPLANATORY
B12: 3.1 | C12: The Conditions of Contract, together with the Employer's Requirements, etc. shall be read in conjunction with the Bidder's Activity Schedules and in so far as they are relevant.
B13: 4 | C13: ACTIVITY SCHEDULES AND BID PRICES
B14: 4.2 | C14: The Bidder's Activity Schedules shall contains, as far as can be determined, full details of the work that is to be executed by the Contractor and the materials that are to be supplied. It should, however, not be presumed that the Schedule includes and describes every detail of the Contract Works. Where any work or activities to be executed are described or implied without corresponding items appearing in the Price Schedules, the Contractor shall add such items in the price activity schedule.
B15: 4.3 | C15: No claims arising from errors, omissions or misunderstandings, shall be accepted after the closing date of the BID.
B16: 5 | C16: PRICES SHALL BE COMPREHENSIVE
B17: 5.1 | C17: The rates and prices inserted in the Activity Schedules shall be fully inclusive of the works as per Employer's requirements. Such prices shall cover all costs and expenses that may be required in and for the completion of the work described and shall cover the cost of all general risks, liabilities and obligations set forth or implied in the Contract Documents.
B18: 5.2 | C18: The Bidder can cost for supply , design etc. in local currency or combination of foreign and local currency.
B19: 5.3 | C19: Operation & Maintenance (O&M) shall be priced for Years 1 - 2 to determine the O&M Contract value.
B20: 5.4 | C20: A price or rate is to be entered against each item in the Activity Schedules. Items against which no price or rate is entered by the Contractor will not be paid for when executed but will be considered as covered by prices and rates elsewhere in the Activity Schedules.
B21: 5.5 | C21: The Activity Schedules shall be divided into various sections for the convenience of pricing and measurement of the work.
B22: 5.6 | C22: The Activity Schedule shall include but not limited to Description, Unit, Currency, RoE, Unit of measurements, Quantities, Rates and Total Amounts. As shown on typical Activity Schedule herein.
B23: 6 | C23: ALTERATIONS TO THE ACTIVITY SCHEDULES
B24: 6.1 | C24: Bidders may alter the Typical Activity schedule provided herein, and or the Bidder's may provide their own preferred breakdown as per Employer's requirements.
B25: 7 | C25: ERRORS
B26: 7.1 | C26: In the event of any arithmetical errors occurring in the totals from Submitted Activity Schedules such totals will be corrected on the assumption that the rates quoted are correct.
B27: 8 | C27: VALUE ADDED TAX
B28: 8.1 | C28: The work under this Contract is classified as a taxable service under VAT and therefore the Contractor will collect VAT from the Employer and will pay the VAT over to the Receiver of Revenue for the work executed under this Contract.
B29: 9 | C29: ACTIVITY SCHEDULES
B30: 9.1 | C30: The Bids shall be quoted in the currencies of the bidder's choice (limited to a total of 3 different currencies of which one shall be ZAR) and these currencies and quoted price have to be included in the Letter of Bid accordingly. The different currencies will be stated in the "Exchange Rates" worksheets and indicated in the Price Schedules where applicable.
B31: 9.2 | C31: The total of the prices shall include for all direct and indirect costs, overheads, profits, on costs, risks, liabilities, obligations, etc. relative to the contract and all taxes including customs duties on imported Plant to authorities and Excluding VAT on all items.
B32: 9.3 | C32: The Contractor shall allow for all necessary costs to complete the Works as required in terms of the Employer's requirements whether expressly stated or not in the Bidder's Activity schedule.
B33: 9.4 | C33: Contractor to check and take responsibility for all descriptions, formulae, and structure of their Activity Schedule.
B34: 9.5 | C34: Where reference is made to the "Contractor" in these documents it will mean "Bidder" or "Vice versa" during the bidding process.
B35: 9.6 | C35: The Bidder's Activity Schedule provides the basis of all valuations of the work, payments in multiple currencies, price adjustment (CPA) and general progress monitoring.
B36: 10 | C36: INSURANCE
B37: 10.1 | C37: Insurances shall be as per NEC ECC contract
B38: 11 | C38: CONTRACT PRICE ADJUSTMENTS
B39: 11.1 | C39: For detailed instructions - refer to NEC ECC Contract (X1) Clause
B40: 11.2 | C40: The Contractor shall propose CPA formula on the attached CPA template provided.
B41: 13 | C41: CURRENCY RATE OF EXCHANGE
B42: 13.1 | C42: For detailed instructions - refer to "Currency ROE Rate of Exchange.- This sheet is provided herein as Exchange Rates
B43: 13.2 | C43: This sheet is required to be completed by the BIDDER with the "Exchange Rates" in terms of Eskom's BID requirements

Sheet Typical Activity Schedule
B2: Tutuka Power Station
B3: =PREAMBLE!B1 -> Tutuka Power Plant - Solar Photovoltaic (Output:28.93MW)
B4: Activity Schedule (Rev- 00)
Q6: Local
B7: Item No. | C7: Section Number | D7: Description | E7: Activity | F7: Currency | N7: CPA | O7: CPA Description | Q7: Foreign
H8: RoE Currency 1,00 = ZAR | I8: Unit | J8: QTY | K8: Local Currency Rate | L8: Foreign Currency Rate | M8: Total Amount converted to ZAR
P9: Month-01 | Q9: Month-02 | R9: Month-03 | S9: Month-04 | T9: Month-05 | U9: Month-06
B11: Fixed Charges | O11: =IF(D11<>"",VLOOKUP(D11,'[13]5.1.4 Price adjustment formulae'!$A$8:$B$19,2,FALSE),"") -> 
B12: 128 | C12: KPV35 | D12: Establishment of facilities on site | E12: Preliminaries | F12: Local | G12: ZAR | H12: 1.00 | I12: Item | J12: 1 | L12: 0 | M12: =J12*L12*H12 -> 0 | N12: - | O12: Fixed
B13: 129 | C13: =C12 -> KPV35 | D13: Other contractual requirements | E13: Preliminaries | F13: Local | G13: ZAR | H13: 1.00 | I13: Item | J13: 1 | L13: 0 | M13: =J13*L13*H13 -> 0 | N13: - | O13: Fixed
B14: 130 | C14: =C13 -> KPV35 | D14: Environmental related costs | E14: Preliminaries | F14: Local | G14: ZAR | H14: 1.00 | I14: Item | J14: 1 | L14: 0 | M14: 0 | N14: - | O14: Fixed
B15: =B14+1 -> 131 | C15: KPV35 | D15: Health & Safety related costs | E15: Preliminaries | F15: Local | G15: ZAR | H15: 1.00 | I15: Item | J15: 1 | L15: 0 | M15: 0 | N15: - | O15: Fixed
B16: =B15+1 -> 132 | C16: KPV35 | D16: Quality related costs | E16: Preliminaries | F16: Local | G16: ZAR | H16: 1.00 | I16: Item | J16: 1 | L16: 0 | M16: 0 | N16: - | O16: Fixed
B17: 133 | C17: KPV35 | D17: Training related costs | E17: Preliminaries | F17: Local | G17: ZAR | H17: 1.00 | I17: Item | J17: 1 | L17: 0 | M17: 0 | N17: - | O17: Fixed
B18: 134 | C18: KPV35 | D18: Medical tests / Induction training | E18: Preliminaries | F18: Local | G18: ZAR | H18: 1.00 | I18: Item | J18: 1 | L18: 0 | M18: 0 | N18: - | O18: Fixed
B19: 135 | C19: KPV35 | D19: Staff transportation | E19: Preliminaries | F19: Local | G19: ZAR | H19: 1.00 | I19: Item | J19: 1 | L19: 0 | M19: 0 | N19: - | O19: Fixed
B20: 136 | C20: KPV35 | D20: Staff accommodation | E20: Preliminaries | F20: Local | G20: ZAR | H20: 1.00 | I20: Item | J20: 1 | L20: 0 | M20: =J20*L20*H20 -> 0 | N20: - | O20: Fixed
B21: 137 | C21: KPV35 | D21: Access & permits | E21: Preliminaries | F21: Local | G21: ZAR | H21: 1.00 | I21: Item | J21: 1 | L21: 0 | M21: 0 | N21: - | O21: Fixed
B22: 138 | C22: KPV35 | D22: Site de-establishment | E22: Preliminaries | F22: Local | G22: ZAR | H22: 1.00 | I22: Item | J22: 1 | L22: 0 | M22: 0 | N22: - | O22: Fixed
B23: Time Related Charges
B24: =B22+1 -> 139 | C24: =C22 -> KPV35 | D24: Management | E24: Preliminaries | F24: Local | G24: ZAR | H24: 1.00 | I24: Item | J24: 1 | L24: 0 | M24: =J24*L24*H24 -> 0 | N24: - | O24: Fixed
B25: =B24+1 -> 140 | C25: =C24 -> KPV35 | D25: Project Management during construction period | E25: Preliminaries | F25: Local | G25: ZAR | H25: 1.00 | I25: Item | J25: 1 | L25: 0 | M25: =J25*L25*H25 -> 0 | N25: - | O25: Fixed
B26: 141 | C26: =C25 -> KPV35 | D26: Supervision during construction period | E26: Preliminaries | F26: Local | G26: ZAR | H26: 1.00 | I26: Item | J26: 1 | L26: 0 | M26: =J26*L26*H26 -> 0 | N26: - | O26: Fixed
B27: 142 | C27: =C26 -> KPV35 | D27: Specialist during construction period | E27: Preliminaries | F27: Local | G27: ZAR | H27: 1.00 | I27: Item | J27: 1 | L27: 0 | M27: =J27*L27*H27 -> 0 | N27: - | O27: Fixed
B28: 143 | C28: KPV35 | D28: Site related cost | E28: Preliminaries | F28: Local | G28: ZAR | H28: 1.00 | I28: Item | J28: 1 | L28: 0 | M28: =J28*L28*H28 -> 0 | N28: - | O28: Fixed
B29: Value Related Charges | J29: 1 | L29: 0 | M29: =J30*L30*H30 -> 0
B30: =B28+1 -> 144 | C30: =C28 -> KPV35 | D30: Performance Bonds | E30: Preliminaries | F30: Local | G30: ZAR | H30: 1.00 | I30: Item | J30: 1 | L30: 0 | N30: - | O30: Fixed
B31: =B30+1 -> 145 | C31: =C30 -> KPV35 | D31: Retention Bonds | E31: Preliminaries | F31: Local | G31: ZAR | H31: 1.00 | I31: Item | J31: 1 | L31: 0 | M31: =J31*L31*H31 -> 0 | N31: - | O31: Fixed
B32: =B31+1 -> 146 | C32: =C31 -> KPV35 | D32: Cost of SDL & I Performance Security | E32: Preliminaries | F32: Local | G32: ZAR | H32: 1.00 | I32: Item | J32: 1 | L32: 0 | M32: 0 | N32: - | O32: Fixed
B33: =B32+1 -> 147 | C33: KPV35 | D33: Workers Insurance | E33: Preliminaries | F33: Local | G33: ZAR | H33: 1.00 | I33: Item | J33: 1 | L33: 0 | M33: 0 | N33: - | O33: Fixed
B34: =B33+1 -> 148 | C34: KPV35 | D34: Works Insurance | E34: Preliminaries | F34: Local | G34: ZAR | H34: 1.00 | I34: Item | J34: 1 | L34: 0 | M34: 0 | N34: - | O34: Fixed
B35: =B34+1 -> 149 | C35: KPV35 | D35: Security for the Works | E35: Preliminaries | F35: Local | G35: ZAR | H35: 1.00 | I35: Item | J35: 1 | L35: 0 | M35: 0 | N35: - | O35: Fixed
B36: Civil Works
B37: Site clearance
B38: =1 -> 1 | C38: KPV02 | D38: Diggings including removal of trees, tree stumps and clearing of site | E38: Design | F38: Local | G38: ZAR | H38: 1.00 | I38: Item | J38: 1 | L38: 0 | M38: =H38*J38*L38 -> 0 | N38: - | O38: Fixed
B39: =B38+1 -> 2 | C39: =C38 -> KPV02 | D39: Diggings including removal of trees, tree stumps and clearing of site | E39: Construction, Erection, Installation | F39: Local | G39: ZAR | H39: 1.00 | I39: Item | J39: 1 | L39: 0 | M39: =H39*J39*L39 -> 0 | N39: - | O39: Fixed
B40: =B39+1 -> 3 | C40: =C39 -> KPV02 | D40: Diggings including removal of trees, tree stumps and clearing of site | E40: Site Acceptance Test | F40: Local | G40: ZAR | H40: 1.00 | I40: Item | J40: 1 | L40: 0 | M40: 0 | N40: - | O40: Fixed
B41: Reinforced concrete foundation for solar panels
B42: =B40+1 -> 4 | C42: KPV03 | D42: Foundation (Allowance) | E42: Design | F42: Local | G42: ZAR | H42: 1.00 | I42: Item | J42: 1 | L42: 0 | M42: =H42*J42*L42 -> 0 | N42: - | O42: Fixed
B43: =B42+1 -> 5 | C43: =C42 -> KPV03 | D43: Foundation (Allowance) | E43: Construction, Erection, Installation | F43: Local | G43: ZAR | H43: 1.00 | I43: Item | J43: 1 | L43: 0 | M43: =H43*J43*L43 -> 0 | N43: - | O43: Fixed
B44: =B43+1 -> 6 | C44: =C43 -> KPV03 | D44: Foundation (Allowance) | E44: Factory Acceptance Test | F44: Local | G44: ZAR | H44: 1.00 | I44: Item | J44: 1 | L44: 0 | M44: 0 | N44: - | O44: Fixed
B45: 7 | C45: =C44 -> KPV03 | D45: Foundation (Allowance) | E45: Quality Inspection | F45: Local | G45: ZAR | H45: 1.00 | I45: Item | J45: 1 | L45: 0 | M45: =H45*J45*L45 -> 0 | N45: - | O45: Fixed
B46: Access roads (Allowance)
B47: =B45+1 -> 8 | C47: KPV04 | D47: Allowance for access roads | E47: Design | F47: Local | G47: ZAR | H47: 1.00 | I47: Item | J47: 1 | L47: 0 | M47: =H47*J47*L47 -> 0 | N47: - | O47: Fixed
B48: =B47+1 -> 9 | C48: =C47 -> KPV04 | D48: Allowance for access roads | E48: Construction, Erection, Installation | F48: Local | G48: ZAR | H48: 1.00 | I48: Item | J48: 1 | L48: 0 | M48: =H48*J48*L48 -> 0 | N48: - | O48: Fixed
B49: 10 | C49: =C48 -> KPV04 | D49: Allowance for access roads | E49: Factory Acceptance Test | F49: Local | G49: ZAR | H49: 1.00 | I49: Item | J49: 1 | L49: 0 | M49: 0 | N49: - | O49: Fixed
B50: 11 | C50: =C49 -> KPV04 | D50: Allowance for access roads | E50: Quality Inspection | F50: Local | G50: ZAR | H50: 1.00 | I50: Item | J50: 1 | L50: 0 | M50: =H50*J50*L50 -> 0 | N50: - | O50: Fixed
B51: Steelwork for working platforms
B52: =B50+1 -> 12 | C52: KPV05 | D52: Steelwork | E52: Design | F52: Local | G52: ZAR | H52: 1.00 | I52: Item | J52: 1 | L52: 0 | M52: =J52*L52*H52 -> 0 | N52: - | O52: Fixed
B53: =B52+1 -> 13 | C53: =C52 -> KPV05 | D53: Steelwork | E53: Procurement | F53: Local | G53: ZAR | H53: 1.00 | I53: =I52 -> Item | J53: 1 | L53: 0 | M53: 0 | N53: - | O53: Fixed
B54: 14 | C54: =C53 -> KPV05 | D54: Steelwork | E54: Transport | F54: Local | G54: ZAR | H54: 1.00 | I54: =I53 -> Item | J54: 1 | L54: 0 | M54: 0 | N54: - | O54: Fixed
B55: 15 | C55: =C54 -> KPV05 | D55: Steelwork | E55: Construction, Erection, Installation | F55: Local | G55: ZAR | H55: 1.00 | I55: =I54 -> Item | J55: 1 | L55: 0 | M55: 0 | N55: - | O55: Fixed
B56: 16 | C56: =C55 -> KPV05 | D56: Steelwork | E56: Quality Test | F56: Local | G56: ZAR | H56: 1.00 | I56: =I55 -> Item | J56: 1 | L56: 0 | M56: 0 | N56: - | O56: Fixed
B57: 17 | C57: =C56 -> KPV05 | D57: Steelwork | E57: Site Acceptance Test | F57: Local | G57: ZAR | H57: 1.00 | I57: Item | J57: 1 | L57: 0 | M57: 0 | N57: - | O57: Fixed
B58: Mechanical works
B59: PV Modules
B60: =B57+1 -> 18 | C60: KPV06 | D60: PV modules | E60: Design | F60: Local | G60: ZAR | H60: 1.00 | I60: Item | J60: 1 | L60: 0 | M60: =J60*L60*H60 -> 0 | N60: - | O60: Fixed
B61: =B60+1 -> 19 | C61: =C60 -> KPV06 | D61: PV modules | E61: Manufacture and Assembly / Procurement of material | F61: Local | G61: ZAR | H61: 1.00 | I61: Item | J61: 1 | L61: 0 | M61: =J61*L61*H61 -> 0 | N61: - | O61: Fixed
B62: 20 | C62: =C61 -> KPV06 | D62: PV modules | E62: Transport | F62: Local | G62: ZAR | H62: 1.00 | I62: Item | J62: 1 | L62: 0 | M62: 0 | N62: - | O62: Fixed
B63: 21 | C63: =C62 -> KPV06 | D63: PV modules | E63: Construction, Erection, Installation | F63: Local | G63: ZAR | H63: 1.00 | I63: Item | J63: 1 | L63: 0 | M63: 0 | N63: - | O63: Fixed
B64: 22 | C64: =C63 -> KPV06 | D64: PV modules | E64: Factory Acceptance Test | F64: Local | G64: ZAR | H64: 1.00 | I64: Item | J64: 1 | L64: 0 | M64: 0 | N64: - | O64: Fixed
B65: 23 | C65: =C64 -> KPV06 | D65: PV modules | E65: Quality Inspection | F65: Local | G65: ZAR | H65: 1.00 | I65: Item | J65: 1 | L65: 0 | M65: 0 | N65: - | O65: Fixed
B66: Inverter
B67: =B65+1 -> 24 | C67: KPV07 | D67: AC kW Inverter | E67: Design | F67: Local | G67: ZAR | H67: 1.00 | I67: Item | J67: 1 | L67: 0 | M67: =J67*L67*H67 -> 0 | N67: - | O67: Fixed
B68: =B67+1 -> 25 | C68: =C67 -> KPV07 | D68: AC kW Inverter | E68: Manufacture and Assembly | F68: Local | G68: ZAR | H68: 1.00 | I68: Item | J68: 1 | L68: 0 | M68: 0 | N68: - | O68: Fixed
B69: =B68+1 -> 26 | C69: =C68 -> KPV07 | D69: AC kW Inverter | E69: Transport | F69: Local | G69: ZAR | H69: 1.00 | I69: Item | J69: 1 | L69: 0 | M69: 0 | N69: - | O69: Fixed
B70: 27 | C70: =C69 -> KPV07 | D70: AC kW Inverter | E70: Construction, Erection, Installation | F70: Local | G70: ZAR | H70: 1.00 | I70: Item | J70: 1 | L70: 0 | M70: 0 | N70: - | O70: Fixed
B71: 28 | C71: =C70 -> KPV07 | D71: AC kW Inverter | E71: Factory Acceptance Test | F71: Local | G71: ZAR | H71: 1.00 | I71: Item | J71: 1 | L71: 0 | M71: 0 | N71: - | O71: Fixed
B72: 29 | C72: =C71 -> KPV07 | D72: AC kW Inverter | E72: Quality Inspection | F72: Local | G72: ZAR | H72: 1.00 | I72: Item | J72: 1 | L72: 0 | M72: 0 | N72: - | O72: Fixed
B73: Horizontal Axis Tracking System
B74: =B57+1 -> 18 | C74: KPV08 | D74: Tracking System | E74: Design | F74: Local | G74: ZAR | H74: 1.00 | I74: Item | J74: 1 | L74: 0 | M74: =J74*L74*H74 -> 0 | N74: - | O74: Fixed
B75: =B74+1 -> 19 | C75: =C74 -> KPV08 | D75: Tracking System | E75: Manufacture and Assembly | F75: Local | G75: ZAR | H75: 1.00 | I75: Item | J75: 1 | L75: 0 | M75: 0 | N75: - | O75: Fixed
B76: 20 | C76: =C75 -> KPV08 | D76: Tracking System | E76: Transport | F76: Local | G76: ZAR | H76: 1.00 | I76: Item | J76: 1 | L76: 0 | M76: 0 | N76: - | O76: Fixed
B77: 21 | C77: =C76 -> KPV08 | D77: Tracking System | E77: Construction, Erection, Installation | F77: Local | G77: ZAR | H77: 1.00 | I77: Item | J77: 1 | L77: 0 | M77: 0 | N77: - | O77: Fixed
B78: 22 | C78: =C77 -> KPV08 | D78: Tracking System | E78: Site Acceptance Test | F78: Local | G78: ZAR | H78: 1.00 | I78: Item | J78: 1 | L78: 0 | M78: 0 | N78: - | O78: Fixed
B79: 23 | C79: =C78 -> KPV08 | D79: Tracking System | E79: Commissioning | F79: Local | G79: ZAR | H79: 1.00 | I79: Item | J79: 1 | L79: 0 | M79: 0 | N79: - | O79: Fixed
B80: Capacitor Banks
B81: =B79+1 -> 24 | C81: KPV09 | D81: =D67 -> AC kW Inverter | E81: Design | F81: Local | G81: ZAR | H81: 1.00 | I81: Item | J81: 1 | L81: 0 | M81: =J81*L81*H81 -> 0 | N81: - | O81: Fixed
B82: =B81+1 -> 25 | C82: =C81 -> KPV09 | D82: =D81 -> AC kW Inverter | E82: Manufacture and Assembly | F82: Local | G82: ZAR | H82: 1.00 | I82: Item | J82: 1 | L82: 0 | M82: 0 | N82: - | O82: Fixed
B83: =B82+1 -> 26 | C83: =C82 -> KPV09 | D83: =D82 -> AC kW Inverter | E83: Transport | F83: Local | G83: ZAR | H83: 1.00 | I83: Item | J83: 1 | L83: 0 | M83: 0 | N83: - | O83: Fixed
B84: 27 | C84: =C83 -> KPV09 | D84: AC kW Inverter | E84: Construction, Erection, Installation | F84: Local | G84: ZAR | H84: 1.00 | I84: Item | J84: 1 | L84: 0 | M84: 0 | N84: - | O84: Fixed
B85: 28 | C85: =C84 -> KPV09 | D85: AC kW Inverter | E85: Factory Acceptance Test | F85: Local | G85: ZAR | H85: 1.00 | I85: Item | J85: 1 | L85: 0 | M85: 0 | N85: - | O85: Fixed
B86: 29 | C86: =C85 -> KPV09 | D86: AC kW Inverter | E86: Quality Inspection | F86: Local | G86: ZAR | H86: 19.50 | I86: Item | J86: 1 | L86: 0 | M86: 0 | N86: - | O86: Fixed
B87: Electrical works
B88: Transformers
B89: =B86+1 -> 30 | C89: KPV10 | D89: Transformers | E89: Design | F89: Local | G89: ZAR | H89: 1.00 | I89: Item | J89: 1 | L89: 0 | M89: =J89*L89*H89 -> 0 | N89: - | O89: Fixed
B90: =B89+1 -> 31 | C90: =C89 -> KPV10 | D90: Transformers | E90: Manufacture and Assembly | F90: Local | G90: ZAR | H90: 1.00 | I90: Item | J90: 1 | L90: 0 | M90: =J90*L90*H90 -> 0 | N90: - | O90: Fixed
B91: =B90+1 -> 32 | C91: =C90 -> KPV10 | D91: Transformers | E91: Transport | F91: Local | G91: ZAR | H91: 1.00 | I91: Item | J91: 1 | L91: 0 | M91: 0 | N91: - | O91: Fixed
B92: =B91+1 -> 33 | C92: =C91 -> KPV10 | D92: Transformers | E92: Construction, Erection, Installation | F92: Local | G92: ZAR | H92: 1.00 | I92: Item | J92: 1 | L92: 0 | M92: 0 | N92: - | O92: Fixed
B93: =B92+1 -> 34 | C93: =C92 -> KPV10 | D93: =D92 -> Transformers | E93: Factory Acceptance Test | F93: Local | G93: ZAR | H93: 1.00 | I93: Item | J93: 1 | L93: 0 | M93: =J93*L93*H93 -> 0 | N93: - | O93: Fixed
B94: =B93+1 -> 35 | C94: =C92 -> KPV10 | D94: Transformers | E94: Site Acceptance Test | F94: Local | G94: ZAR | H94: 1.00 | I94: Item | J94: 1 | L94: 0 | M94: 0 | N94: - | O94: Fixed
B95: =B94+1 -> 36 | C95: =C94 -> KPV10 | D95: Transformers | E95: Quality Inspection | F95: Local | G95: ZAR | H95: 1.00 | I95: Item | J95: 1 | L95: 0 | M95: 0 | N95: - | O95: Fixed
B96: LV Switchgear
B97: =B94+1 -> 36 | C97: KPV11 | D97: Switchgear | E97: Design | F97: Local | G97: ZAR | H97: 1.00 | I97: Item | J97: =J89 -> 1 | L97: 0 | M97: =J97*L97*H97 -> 0 | N97: - | O97: Fixed
B98: =B97+1 -> 37 | C98: =C97 -> KPV11 | D98: Switchgear | E98: Manufacture and Assembly | F98: Local | G98: ZAR | H98: 1.00 | I98: Item | J98: =J97 -> 1 | L98: 0 | M98: 0 | N98: - | O98: Fixed
B99: =B98+1 -> 38 | C99: =C98 -> KPV11 | D99: Switchgear | E99: Transport | F99: Local | G99: ZAR | H99: 1.00 | I99: Item | J99: =J98 -> 1 | L99: 0 | M99: 0 | N99: - | O99: Fixed
B100: =B99+1 -> 39 | C100: =C99 -> KPV11 | D100: Switchgear | E100: Construction, Erection, Installation | F100: Local | G100: ZAR | H100: 1.00 | I100: Item | J100: 1 | L100: 0 | M100: 0 | N100: - | O100: Fixed
B101: =B100+1 -> 40 | C101: =C100 -> KPV11 | D101: Switchgear | E101: Factory Acceptance Test | F101: Local | G101: ZAR | H101: 1.00 | I101: Item | J101: 1 | L101: 0 | M101: 0 | N101: - | O101: Fixed
B102: =B101+1 -> 41 | C102: =C101 -> KPV11 | D102: Switchgear | E102: Quality Inspection | F102: Local | G102: ZAR | H102: 1.00 | I102: Item | J102: 1 | L102: 0 | M102: 0 | N102: - | O102: Fixed
B103: MV Switchgear
B104: =B101+1 -> 41 | C104: KPV12 | D104: Switchgear | E104: Design | F104: Local | G104: ZAR | H104: 1.00 | I104: Item | J104: =J97 -> 1 | L104: 0 | M104: =J104*L104*H104 -> 0 | N104: - | O104: Fixed
B105: =B104+1 -> 42 | C105: =C104 -> KPV12 | D105: Switchgear | E105: Manufacture and Assembly | F105: Local | G105: ZAR | H105: 1.00 | I105: Item | J105: =J104 -> 1 | L105: 0 | M105: 0 | N105: - | O105: Fixed
B106: =B105+1 -> 43 | C106: =C105 -> KPV12 | D106: Switchgear | E106: Transport | F106: Local | G106: ZAR | H106: 1.00 | I106: Item | J106: =J105 -> 1 | L106: 0 | M106: 0 | N106: - | O106: Fixed
B107: =B106+1 -> 44 | C107: =C106 -> KPV12 | D107: Switchgear | E107: Construction, Erection, Installation | F107: Local | G107: ZAR | H107: 1.00 | I107: Item | J107: 1 | L107: 0 | M107: 0 | N107: - | O107: Fixed
B108: =B107+1 -> 45 | C108: =C107 -> KPV12 | D108: Switchgear | E108: Factory Acceptance Test | F108: Local | G108: ZAR | H108: 1.00 | I108: Item | J108: 1 | L108: 0 | M108: 0 | N108: - | O108: Fixed
B109: =B108+1 -> 46 | C109: =C108 -> KPV12 | D109: Switchgear | E109: Quality Inspection | F109: Local | G109: ZAR | H109: 1.00 | I109: Item | J109: 1 | L109: 0 | M109: 0 | N109: - | O109: Fixed
B110: Transformer Junction Box
B111: =B108+1 -> 46 | C111: KPV13 | D111: Current and Voltage Transformer Junction Box | E111: Design | F111: Local | G111: ZAR | H111: 1.00 | I111: Item | J111: 1 | L111: 0 | M111: =J111*L111*H111 -> 0 | N111: - | O111: Fixed
B112: =B111+1 -> 47 | C112: =C111 -> KPV13 | D112: Current and Voltage Transformer Junction Box | E112: Manufacture and Assembly | F112: Local | G112: ZAR | H112: 1.00 | I112: Item | J112: 1 | L112: 0 | M112: 0 | N112: - | O112: Fixed
B113: =B112+1 -> 48 | C113: =C112 -> KPV13 | D113: Current and Voltage Transformer Junction Box | E113: Transport | F113: Local | G113: ZAR | H113: 1.00 | I113: Item | J113: 1 | L113: 0 | M113: 0 | N113: - | O113: Fixed
B114: =B113+1 -> 49 | C114: =C113 -> KPV13 | D114: Telecommunication | E114: Construction, Erection, Installation | F114: Local | G114: ZAR | H114: 1.00 | I114: Item | J114: 1 | L114: 0 | M114: 0 | N114: - | O114: Fixed
B115: =B113+1 -> 49 | C115: =C114 -> KPV13 | D115: Current and Voltage Transformer Junction Box | E115: Factory Acceptance Test | F115: Local | G115: ZAR | H115: 1.00 | I115: Item | J115: 1 | L115: 0 | M115: 0 | N115: - | O115: Fixed
B116: =B115+1 -> 50 | C116: =C115 -> KPV13 | D116: Current and Voltage Transformer Junction Box | E116: Quality Inspection | F116: Local | G116: ZAR | H116: 1.00 | I116: Item | J116: 1 | L116: 0 | M116: 0 | N116: - | O116: Fixed
B117: Protection (Allowance)
B118: =B115+1 -> 50 | C118: KPV14 | D118: Transformer protection | E118: Design | F118: Local | G118: ZAR | H118: 1.00 | I118: Item | J118: 1 | L118: 0 | M118: =J118*L118*H118 -> 0 | N118: - | O118: Fixed
B119: =B118+1 -> 51 | C119: =C118 -> KPV14 | D119: Transformer protection | E119: Manufacture and Assembly | F119: Local | G119: ZAR | H119: 1.00 | I119: =I118 -> Item | J119: 1 | L119: 0 | M119: 0 | N119: - | O119: Fixed
B120: =B119+1 -> 52 | C120: =C119 -> KPV14 | D120: Transformer protection | E120: Transport | F120: Local | G120: ZAR | H120: 1.00 | I120: =I119 -> Item | J120: 1 | L120: 0 | M120: 0 | N120: - | O120: Fixed
B121: =B120+1 -> 53 | C121: =C120 -> KPV14 | D121: Transformer protection | E121: Construction, Erection, Installation | F121: Local | G121: ZAR | H121: 1.00 | I121: =I120 -> Item | J121: 1 | L121: 0 | M121: 0 | N121: - | O121: Fixed
B122: =B121+1 -> 54 | C122: =C121 -> KPV14 | D122: Transformer protection | E122: Site Acceptance Test | F122: Local | G122: ZAR | H122: 1.00 | I122: =I121 -> Item | J122: 1 | L122: 0 | M122: 0 | N122: - | O122: Fixed
B123: =B122+1 -> 55 | C123: =C122 -> KPV14 | D123: Transformer protection | E123: Commissioning | F123: Local | G123: ZAR | H123: 1.00 | I123: Item | J123: 1 | L123: 0 | M123: 0 | N123: - | O123: Fixed
B124: Standby Power Systems & AC/DC Distribution Boards
B125: =B122+1 -> 55 | C125: KPV15 | D125: Standby Power Systems | E125: Design | F125: Local | G125: ZAR | H125: 1.00 | I125: Item | J125: 1 | L125: 0 | M125: =J125*L125*H125 -> 0 | N125: - | O125: Fixed
B126: =B125+1 -> 56 | C126: =C125 -> KPV15 | D126: Standby Power Systems | E126: Manufacture | F126: Local | G126: ZAR | H126: 1.00 | I126: Item | J126: 1 | L126: 0 | M126: 0 | N126: - | O126: Fixed
B127: =B126+1 -> 57 | C127: =C126 -> KPV15 | D127: Standby Power Systems | E127: Transport | F127: Local | G127: ZAR | H127: 1.00 | I127: Item | J127: 1 | L127: 0 | M127: 0 | N127: - | O127: Fixed
B128: =B127+1 -> 58 | C128: =C127 -> KPV15 | D128: Standby Power Systems | E128: Construction, Erection, Installation | F128: Local | G128: ZAR | H128: 1.00 | I128: Item | J128: 1 | L128: 0 | M128: 0 | N128: - | O128: Fixed
B129: =B128+1 -> 59 | C129: =C128 -> KPV15 | D129: Standby Power Systems | E129: Factory Acceptance Test | F129: Local | G129: ZAR | H129: 1.00 | I129: Item | J129: 1 | L129: 0 | M129: 0 | N129: - | O129: Fixed
B130: =B128+1 -> 59 | C130: =C129 -> KPV15 | D130: Standby Power Systems | E130: Quality Inspection | F130: Local | G130: ZAR | H130: 1.00 | I130: Item | J130: 1 | L130: 0 | M130: 0 | N130: - | O130: Fixed
B131: Cabling (Allowance)
B132: =B129+1 -> 60 | C132: KPV16 | D132: Cabling | E132: Design | F132: Local | G132: ZAR | H132: 1.00 | I132: Item | J132: 1 | L132: 0 | M132: =J132*L132*H132 -> 0 | N132: - | O132: Fixed
B133: =B132+1 -> 61 | C133: =C132 -> KPV16 | D133: Cabling | E133: Manufacture | F133: Local | G133: ZAR | H133: 1.00 | I133: Item | J133: 1 | L133: 0 | M133: 0 | N133: - | O133: Fixed
B134: =B133+1 -> 62 | C134: =C133 -> KPV16 | D134: Cabling | E134: Transport | F134: Local | G134: ZAR | H134: 1.00 | I134: Item | J134: 1 | L134: 0 | M134: 0 | N134: - | O134: Fixed
B135: =B134+1 -> 63 | C135: =C134 -> KPV16 | D135: Cabling | E135: Construction, Erection, Installation | F135: Local | G135: ZAR | H135: 1.00 | I135: Item | J135: 1 | L135: 0 | M135: 0 | N135: - | O135: Fixed
B136: =B135+1 -> 64 | C136: =C135 -> KPV16 | D136: Cabling | E136: Factory Acceptance Test | F136: Local | G136: ZAR | H136: 1.00 | I136: Item | J136: 1 | L136: 0 | M136: 0 | N136: - | O136: Fixed
B137: =B135+1 -> 64 | C137: =C136 -> KPV16 | D137: Cabling | E137: Quality Inspection | F137: Local | G137: ZAR | H137: 1.00 | I137: Item | J137: 1 | L137: 0 | M137: 0 | N137: - | O137: Fixed
B138: Information Techonology
B139: =B136+1 -> 65 | C139: KPV17 | D139: Information Technology | E139: Design | F139: Local | G139: ZAR | H139: 1.00 | I139: Item | J139: 1 | L139: 0 | M139: =J139*L139*H139 -> 0 | N139: - | O139: Fixed
B140: =B139+1 -> 66 | C140: =C139 -> KPV17 | D140: Information Technology | E140: Procurement | F140: Local | G140: ZAR | H140: 1.00 | I140: Item | J140: 1 | L140: 0 | M140: 0 | N140: - | O140: Fixed
B141: =B140+1 -> 67 | C141: =C140 -> KPV17 | D141: Information Technology | E141: Transport | F141: Local | G141: ZAR | H141: 1.00 | I141: Item | J141: 1 | L141: 0 | M141: 0 | N141: - | O141: Fixed
B142: =B141+1 -> 68 | C142: =C141 -> KPV17 | D142: Information Technology | E142: Construction, Erection, Installation | F142: Local | G142: ZAR | H142: 1.00 | I142: Item | J142: 1 | L142: 0 | M142: 0 | N142: - | O142: Fixed
B143: =B142+1 -> 69 | C143: =C142 -> KPV17 | D143: Information Technology | E143: Factory Acceptance Test | F143: Local | G143: ZAR | H143: 1.00 | I143: Item | J143: 1 | L143: 0 | M143: 0 | N143: - | O143: Fixed
B144: =B142+1 -> 69 | C144: =C143 -> KPV17 | D144: Information Technology | E144: Quality Inspection | F144: Local | G144: ZAR | H144: 1.00 | I144: Item | J144: 1 | L144: 0 | M144: 0 | N144: - | O144: Fixed
B146: Remote Engineering Access
B147: =B144+1 -> 70 | C147: KPV18 | D147: Remote Engineering Access | E147: Design | F147: Local | G147: ZAR | H147: 1.00 | I147: Item | J147: 1 | L147: 0 | M147: =J147*L147*H147 -> 0 | N147: - | O147: Fixed
B148: =B147+1 -> 71 | C148: =C147 -> KPV18 | D148: Remote Engineering Access | E148: Manufacture and Assembly | F148: Local | G148: ZAR | H148: 1.00 | I148: =I147 -> Item | J148: 1 | L148: 0 | M148: 0 | N148: - | O148: Fixed
B149: =B148+1 -> 72 | C149: =C148 -> KPV18 | D149: Remote Engineering Access | E149: Transport | F149: Local | G149: ZAR | H149: 1.00 | I149: =I148 -> Item | J149: 1 | L149: 0 | M149: 0 | N149: - | O149: Fixed
B150: =B149+1 -> 73 | C150: =C149 -> KPV18 | D150: Remote Engineering Access | E150: Construction, Erection, Installation | F150: Local | G150: ZAR | H150: 1.00 | I150: =I149 -> Item | J150: 1 | L150: 0 | M150: 0 | N150: - | O150: Fixed
B151: =B150+1 -> 74 | C151: =C150 -> KPV18 | D151: Remote Engineering Access | E151: Factory Acceptance Test | F151: Local | G151: ZAR | H151: 1.00 | I151: =I150 -> Item | J151: 1 | L151: 0 | M151: 0 | N151: - | O151: Fixed
B152: =B151+1 -> 75 | C152: =C151 -> KPV18 | D152: Remote Engineering Access | E152: Quality Inspection | F152: Local | G152: ZAR | H152: 1.00 | I152: Item | J152: 1 | L152: 0 | M152: 0 | N152: - | O152: Fixed
B153: Network Integration (SSB)
B154: =B151+1 -> 75 | C154: KPV19 | D154: Network Integration Equipment | E154: Design | F154: Local | G154: ZAR | H154: 1.00 | I154: Item | J154: 1 | L154: 0 | M154: =J154*L154*H154 -> 0 | N154: - | O154: Fixed
B155: =B154+1 -> 76 | C155: =C154 -> KPV19 | D155: Network Integration Equipment | E155: Manufacture and Assembly | F155: Local | G155: ZAR | H155: 1.00 | I155: Item | J155: 1 | L155: 0 | M155: 0 | N155: - | O155: Fixed
B156: =B155+1 -> 77 | C156: =C155 -> KPV19 | D156: Network Integration Equipment | E156: Transport | F156: Local | G156: ZAR | H156: 1.00 | I156: Item | J156: 1 | L156: 0 | M156: 0 | N156: - | O156: Fixed
B157: =B156+1 -> 78 | C157: =C156 -> KPV19 | D157: Network Integration Equipment | E157: Construction, Erection, Installation | F157: Local | G157: ZAR | H157: 1.00 | I157: Item | J157: 1 | L157: 0 | M157: 0 | N157: - | O157: Fixed
B158: =B157+1 -> 79 | C158: =C157 -> KPV19 | D158: Network Integration Equipment | E158: Factory Acceptance Test | F158: Local | G158: ZAR | H158: 1.00 | I158: Item | J158: 1 | L158: 0 | M158: 0 | N158: - | O158: Fixed
B159: =B157+1 -> 79 | C159: =C154 -> KPV19 | D159: Network Integration Equipment | E159: Quality Inspection | F159: Local | G159: ZAR | H159: 1.00 | I159: Item | J159: 1 | L159: 0 | M159: 0 | N159: - | O159: Fixed
B160: Network Integration (Substation 1)
B161: =B158+1 -> 80 | C161: KPV20 | D161: Network Integration Equipment | E161: Design | F161: Local | G161: ZAR | H161: 1.00 | I161: Item | J161: 1 | L161: 0 | M161: =J161*L161*H161 -> 0 | N161: - | O161: Fixed
B162: =B161+1 -> 81 | C162: =C161 -> KPV20 | D162: Network Integration Equipment | E162: Manufacture and Assembly | F162: Local | G162: ZAR | H162: 1.00 | I162: Item | J162: 1 | L162: 0 | M162: 0 | N162: - | O162: Fixed
B163: =B162+1 -> 82 | C163: =C162 -> KPV20 | D163: Network Integration Equipment | E163: Transport | F163: Local | G163: ZAR | H163: 1.00 | I163: Item | J163: 1 | L163: 0 | M163: 0 | N163: - | O163: Fixed
B164: =B163+1 -> 83 | C164: =C163 -> KPV20 | D164: Network Integration Equipment | E164: Construction, Erection, Installation | F164: Local | G164: ZAR | H164: 1.00 | I164: Item | J164: 1 | L164: 0 | M164: 0 | N164: - | O164: Fixed
B165: =B164+1 -> 84 | C165: =C164 -> KPV20 | D165: Network Integration Equipment | E165: Factory Acceptance Test | F165: Local | G165: ZAR | H165: 1.00 | I165: Item | J165: 1 | L165: 0 | M165: 0 | N165: - | O165: Fixed
B166: =B164+1 -> 84 | C166: =C161 -> KPV20 | D166: Network Integration Equipment | E166: Quality Inspection | F166: Local | G166: ZAR | H166: 1.00 | I166: Item | J166: 1 | L166: 0 | M166: 0 | N166: - | O166: Fixed
B167: Network Integration (Substation 2)
B168: =B165+1 -> 85 | C168: KPV21 | D168: Network Integration Equipment | E168: Design | F168: Local | G168: ZAR | H168: 1.00 | I168: Item | J168: 1 | L168: 0 | M168: =J168*L168*H168 -> 0 | N168: - | O168: Fixed
B169: =B168+1 -> 86 | C169: =C168 -> KPV21 | D169: Network Integration Equipment | E169: Manufacture and Assembly | F169: Local | G169: ZAR | H169: 1.00 | I169: Item | J169: 1 | L169: 0 | M169: 0 | N169: - | O169: Fixed
B170: =B169+1 -> 87 | C170: =C169 -> KPV21 | D170: Network Integration Equipment | E170: Transport | F170: Local | G170: ZAR | H170: 1.00 | I170: Item | J170: 1 | L170: 0 | M170: 0 | N170: - | O170: Fixed
B171: =B170+1 -> 88 | C171: =C170 -> KPV21 | D171: Network Integration Equipment | E171: Construction, Erection, Installation | F171: Local | G171: ZAR | H171: 1.00 | I171: Item | J171: 1 | L171: 0 | M171: 0 | N171: - | O171: Fixed
B172: =B171+1 -> 89 | C172: =C171 -> KPV21 | D172: Network Integration Equipment | E172: Factory Acceptance Test | F172: Local | G172: ZAR | H172: 1.00 | I172: Item | J172: 1 | L172: 0 | M172: 0 | N172: - | O172: Fixed
B173: =B171+1 -> 89 | C173: =C168 -> KPV21 | D173: Network Integration Equipment | E173: Quality Inspection | F173: Local | G173: ZAR | H173: 1.00 | I173: Item | J173: 1 | L173: 0 | M173: 0 | N173: - | O173: Fixed
B174: Allowance for other C&I requirements
B175: =B172+1 -> 90 | C175: KPV22 | D175: C&I Requirements | E175: Design | F175: Local | G175: ZAR | H175: 1.00 | I175: Item | J175: 1 | L175: 0 | M175: =J175*L175*H175 -> 0 | N175: - | O175: Fixed
B176: =B175+1 -> 91 | C176: =C175 -> KPV22 | D176: C&I Requirements | E176: Manufacture and Assembly | F176: Local | G176: ZAR | H176: 1.00 | I176: Item | J176: 1 | L176: 0 | M176: 0 | N176: - | O176: Fixed
B177: =B176+1 -> 92 | C177: =C176 -> KPV22 | D177: C&I Requirements | E177: Transport | F177: Local | G177: ZAR | H177: 1.00 | I177: Item | J177: 1 | L177: 0 | M177: 0 | N177: - | O177: Fixed
B178: =B177+1 -> 93 | C178: =C177 -> KPV22 | D178: C&I Requirements | E178: Construction, Erection, Installation | F178: Local | G178: ZAR | H178: 1.00 | I178: Item | J178: 1 | L178: 0 | M178: 0 | N178: - | O178: Fixed
B179: =B178+1 -> 94 | C179: =C178 -> KPV22 | D179: C&I Requirements | E179: Site Acceptance Test | F179: Local | G179: ZAR | H179: 1.00 | I179: Item | J179: 1 | L179: 0 | M179: 0 | N179: - | O179: Fixed
B180: =B179+1 -> 95 | C180: =C179 -> KPV22 | D180: C&I Requirements | E180: Quality Inspection | F180: Local | G180: ZAR | H180: 1.00 | I180: Item | J180: 1 | L180: 0 | M180: 0 | N180: - | O180: Fixed
B182: 88/33kV Switching station (Allowance)
B183: =B180+1 -> 96 | C183: KPV23 | D183: 88/33kV Switching station | E183: Design | F183: Local | G183: ZAR | H183: 1.00 | I183: Item | J183: 1 | L183: 0 | M183: =J183*L183*H183 -> 0 | N183: - | O183: Fixed
B184: =B183+1 -> 97 | C184: =C183 -> KPV23 | D184: 88/33kV Switching station | E184: Construction, Erection, Installation | F184: Local | G184: ZAR | H184: 1.00 | I184: Item | J184: 1 | L184: 0 | M184: =J184*L184*H184 -> 0 | N184: - | O184: Fixed
B185: =B184+1 -> 98 | C185: =C184 -> KPV23 | D185: 88/33kV Switching station | E185: Site Acceptance Test | F185: Local | G185: ZAR | H185: 1.00 | I185: Item | J185: 1 | L185: 0 | M185: =J185*L185*H185 -> 0 | N185: - | O185: Fixed
B186: 99 | C186: =C183 -> KPV23 | D186: 88/33kV Switching station | E186: Quality Inspection | F186: Local | G186: ZAR | H186: 1.00 | I186: Item | J186: 1 | L186: 0 | M186: =J186*L186*H186 -> 0 | N186: - | O186: Fixed
B187: Substation 01
B188: =B186+1 -> 100 | C188: KPV25 | D188: Substation 01 | E188: Design | F188: Local | G188: ZAR | H188: 1.00 | I188: Item | J188: 1 | L188: 0 | M188: =J188*L188*H188 -> 0 | N188: - | O188: Fixed
B189: =B188+1 -> 101 | C189: =C188 -> KPV25 | D189: Substation 01 | E189: Construction, Erection, Installation | F189: Local | G189: ZAR | H189: 1.00 | I189: Item | J189: 1 | L189: 0 | M189: =J189*L189*H189 -> 0 | N189: - | O189: Fixed
B190: =B189+1 -> 102 | C190: =C189 -> KPV25 | D190: Substation 01 | E190: Site Acceptance Test | F190: Local | G190: ZAR | H190: 1.00 | I190: Item | J190: 1 | L190: 0 | M190: =J190*L190*H190 -> 0 | N190: - | O190: Fixed
B191: 103 | C191: KPV25 | D191: Substation 01 | E191: Quality Inspection | F191: Local | G191: ZAR | H191: 1.00 | I191: Item | J191: 1 | L191: 0 | M191: =J191*L191*H191 -> 0 | N191: - | O191: Fixed
B192: Substation 02
B193: =B191+1 -> 104 | C193: KPV26 | D193: Substation 02 | E193: Design | F193: Local | G193: ZAR | H193: 1.00 | I193: Item | J193: 1 | L193: 0 | M193: =J193*L193*H193 -> 0 | N193: - | O193: Fixed
B194: =B193+1 -> 105 | C194: =C193 -> KPV26 | D194: Substation 02 | E194: Construction, Erection, Installation | F194: Local | G194: ZAR | H194: 1.00 | I194: Item | J194: 1 | L194: 0 | M194: =J194*L194*H194 -> 0 | N194: - | O194: Fixed
B195: =B194+1 -> 106 | C195: =C194 -> KPV26 | D195: Substation 02 | E195: Site Acceptance Test | F195: Local | G195: ZAR | H195: 1.00 | I195: Item | J195: 1 | L195: 0 | M195: =J195*L195*H195 -> 0 | N195: - | O195: Fixed
B196: 107 | C196: KPV26 | D196: Substation 02 | E196: Quality Inspection | F196: Local | G196: ZAR | H196: 1.00 | I196: Item | J196: 1 | L196: 0 | M196: =J196*L196*H196 -> 0 | N196: - | O196: Fixed
B198: Signal lighting
B199: =B196+1 -> 108 | C199: KPV28 | D199: Signal lighting | E199: Design | F199: Local | G199: ZAR | H199: 1.00 | I199: Item | J199: 1 | L199: 0 | M199: =J199*L199*H199 -> 0 | N199: - | O199: Fixed
B200: =B199+1 -> 109 | C200: =C199 -> KPV28 | D200: Signal lighting | E200: Procurement | F200: Local | G200: ZAR | H200: 1.00 | I200: Item | J200: 1 | L200: 0 | M200: 0 | N200: - | O200: Fixed
B201: =B199+1 -> 109 | C201: =C200 -> KPV28 | D201: Signal lighting | E201: Transport | F201: Local | G201: ZAR | H201: 1.00 | I201: Item | J201: 1 | L201: 0 | M201: 0 | N201: - | O201: Fixed
B202: =B201+1 -> 110 | C202: =C201 -> KPV28 | D202: Signal lighting | E202: Construction, Erection, Installation | F202: Local | G202: ZAR | H202: 1.00 | I202: Item | J202: 1 | L202: 0 | M202: 0 | N202: - | O202: Fixed
B203: =B201+1 -> 110 | C203: KPV28 | D203: Signal lighting | E203: Factory Acceptance Test | F203: Local | G203: ZAR | H203: 1.00 | I203: Item | J203: 1 | L203: 0 | M203: 0 | N203: - | O203: Fixed
B204: =B203+1 -> 111 | C204: KPV28 | D204: Signal lighting | E204: Quality Inspection | F204: Local | G204: ZAR | H204: 1.00 | I204: Item | J204: 1 | L204: 0 | M204: 0 | N204: - | O204: Fixed
B205: Lighting
B206: =B203+1 -> 111 | C206: KPV29 | D206: Floodlighting | E206: Design | F206: Local | G206: ZAR | H206: 1.00 | I206: Item | J206: 1 | L206: 0 | M206: =J206*L206*H206 -> 0 | N206: - | O206: Fixed
... 38 more rows

Sheet Exchange rates
A1: Enquiry No. | C1: ='[14]Tender Cover Sheet'!C12 -> 0
A2: Package Name: | C2: Tutuka Power Plant - Solar Photovoltaic (Output:28.93MW)
A3: Tenderer's Name: | C3: ='[15]Tender Cover Sheet'!C16 -> 0
A4: Category of Offer: | C4: ='[15]Read Me'!C4 -> 0
A6: 5.1.4 EXCHANGE RATES FOR MULTIPLE CURRENCIES
A8: NOTES:
A9: 1 | B9: The table below needs to be completed if the Employer will be exposed to any currency fluctuation as stipulated in Secondary Clause X3. For conversion of the foreign portions to Rand, please use the South African Reserve Bank's (SARB) exchange rate at 12:00 on the day of advertisement of the bid. This is in terms of the Preferential Procurement Policy Framework Act (PPPFA) with which the Employer has to comply. NB: Tenderers must submit proof of the SARB rate(s) of exchange used
A10: 2 | B10: The following URL (electronic route) is to be followed to access the relevant SARB rates on their web pages:
B11: www.resbank.co.za
B12: - Select Research - Then select Rates - Click on "Select historical exchange rates and other interest rates" - Clicking on the exchange rate in the following page opens the daily rates per currency and SA Rand
A13: 3 | B13: The Employer deals only in the currencies listed below unless other currencies are specifically approved for this tender. Kindly notify the Employer of any currency that the tenderer intends to use, but is not stipulated in the table, to consider sanctioning such currency. Sufficient time must be allowed for the assessment and to respond to such request. The onus is on the tenderer to submit a bid with approved currencies
A14: 4 | B14: The format in which the exchange rate must be inserted in the table is: 1 (One) Foreign Currency = R Amount (i.e. the Rand amount for one of each foreign currency applicable). Exchange rates must be rounded to 4 decimals NB : Only the USD/ZAR, GBP/ZAR and EUR/ZAR are published in this way on the SARB web pages above. The Rand rate with the other currencies must be inverted (1/Foreign Currency Rate) in order to list it in the required format in the table below
A16: EXCHANGE RATES PUBLISHED BY SARB
A17: NB: Tenderers must submit proof of the SARB rate (s) of exchange used.
E18: Date for which the rates are published : | H18: Date to be inserted in the following format: Day, Month and Year. Must be the SARB rate at 12:00 on day of advertisement of bid
A19: No | B19: Currency Description | C19: Code | D19: Exchange Rate Currency 1,00 = R Amount | E19: Payment Method 1a, 1b or 2 | F19: Source
A20: 1 | B20: South African Rand | C20: ZAR | D20: R 1.00
A21: 2 | B21: Australian Dollar | C21: AUD | D21: R 0.00
A22: 3 | B22: Canadian Dollar | C22: CAN | D22: R 0.00
A23: 4 | B23: Swiss Franc | C23: CHF | D23: R 0.00
A24: 5 | B24: Danish Krone | C24: DKK | D24: R 0.00
A25: 6 | B25: European Currency | C25: EUR | D25: R 0.00
A26: 7 | B26: British Pound | C26: GBP | D26: R 0.00
A27: 8 | B27: Hong Kong Dollar | C27: HKD | D27: R 0.00
A28: 9 | B28: Japanese Yen | C28: JPY | D28: R 0.00
A29: 10 | B29: Norwegian Krone | C29: NOK | D29: R 0.00
A30: 11 | B30: New Zealand Dollar | C30: NZD | D30: R 0.00
A31: 12 | B31: Swedish Krone | C31: SEK | D31: R 0.00
A32: 13 | B32: Singapore Dollar | C32: SGD | D32: R 0.00
A33: 14 | B33: United States Dollar | C33: USD | D33: R 0.00

Sheet CPA Formula
A1: Enquiry No.
A2: Project Name: | C2: Tutuka Power Plant - Solar Photovoltaic (Output:28.93MW)
A3: Tenderer's Name:
A4: Category of Offer: | C4: ='[16]Read Me'!C4 -> Main Offer Only
A6: 5.1.2 CONTRACT PRICE ADJUSTMENT (CPA) FOR INFLATION
A8: No. | B8: Formula Code | C8: Summary of the description of the Tenderer's Formulae
A9: 1 | B9: Fixed | C9: Firm and Fixed | F9: Prices are 100 % fixed and firm. CPA is not applicable.
A10: 2 | B10: A | C10: Tenderer's description of Formula A | F10: Type in the description of each formula in the tables below
A11: 3 | B11: B | C11: Tenderer's description of Formula B
A12: 4 | B12: C | C12: Tenderer's description of Formula C
A13: 5 | B13: D | C13: Tenderer's description of Formula A
A14: 6 | B14: E | C14: =B85 -> Tenderer's description of Formula E
A15: 7 | B15: F | C15: =B96 -> Tenderer's description of Formula F
A16: 8 | B16: G | C16: =B107 -> Tenderer's description of Formula G
A17: 9 | B17: H | C17: =B118 -> Tenderer's description of Formula H
A18: 10 | B18: I | C18: =B129 -> Tenderer's description of Formula I
A19: 11 | B19: J | C19: =B140 -> Tenderer's description of Formula J
A21: SPECIFIC REQUIREMENTS
A22: 1. | B22: Only Main Offer is to be submitted. Main offer tenderers are to fully comply with the requirements in the General Notes and CPA Formulae Notes below.
A23: 2. | B23: No ALTERNATIVE offers are accepted.
A25: GENERAL NOTES :
A26: 1 | B26: References to "indices" below mean "cost indices or reference prices".
A27: 2 | B27: Where 5 year historical information must be provided as instructed below, internet address references which are accessible to the general public may be submitted by the Tenderer instead, with the specific electronic route and web page reflecting the applicable data.
A28: 3 | B28: The worksheet CPA Formula in 5.1.2. has to be populated by the tenderer (columns B - J), unless the tenderer’s prices are fixed and firm for the duration of the contract. Each CPA formula must add up to a total of 100%. All columns are to be populated. No inhouse CPA indices may be used. Tenderers are to provide all requested information.CPA Formulae should represent cost breakdown of the goods/commodities/components/items being sourced.
A29: 4 | B29: CPA Formulae Codes Column N 5.1.1 Pricing is to be populated by the tenderer by selecting the respective drop down codes CPA formula as developed by Tenderer in 5.1.2 CPA formulae worksheet (e.g. Formula A-J ) then the tenderer must populate their respective CPA formula in 5.1.2 CPA Formulae Worksheet. Codes and descriptions must be selected by the tenderer and inserted into each row of activity.
A30: 5 | B30: Prices will be fixed and firm for the first twelve (12) months after contract signing date and escalated on an annual basis based on the CPA formula agreed on with tenderer.
A31: 6 | B31: The CPA escalation will be calculated as follows: latest index which is the latest available index at the end of each contractual year vs. the base index which is one month prior to tender closing date.
A32: CPA FORMULA NOTES :
A33: 1 | B33: Proportions/weightings in CPA Formulae: The fixed portion of each formula, not subject to CPA, must be at least 15% but Tenderers may submit higher fixed portion percentages. The other constituent indices and their proportions in each formula must be realistic and relative to the applicable work. The fixed portion and other proportions must add up to 100%.
A34: 2 | B34: Formulae must be linked to independent cost indices or other benchmarks ("reference prices") and must be clearly and completely defined. The source must be a recognised and independent statistical publishing organisation. The Tenderers' in-house indices may not be used.
A35: 3 | B35: Local Price CPA: Where local indices other than those published by SEIFSA or Statistics SA are specified, the Tenderer must submit 5 years' of month by month historical data for such indices. The Tenderer must ensure that indices are published and recommended by the source thereof as applicable to the work involved and that they are still in force/use and applicable at the date of submission of the tender.
A36: 4 | B36: CPA Base Date: The CPA base date for calculating price movements will be the Base Date, Month before Tender closes. For indices or reference prices published as at certain dates, and where such a date is not the Base Date, the latest date for which it is published before the Base Date will be considered as the Base Date index or reference price. In instances where the figure or value is not as at the Base Date or considered as the Base Date Index or reference price as explained herein, the date, figure or value as well as the reason for the deviation must be clearly separately stated and must be realistic for purposes of CPA.
A37: 5 | B37: Base Date Index : The base index or reference price must be inserted in the appropriate column.
A41: Formula A | B41: Tenderer's description of Formula A
A42: Index Ref. | B42: Proportions / weightings for each index (refer note 1) | C42: Description / scope of index (e.g. Labour) | D42: Title/Definition : Linked to the index, e.g., Table C3, All hourly paid employees. Must be completely defined | E42: Source/publisher of index (e.g. SEIFSA, StatsSA, LME) | F42: Base Month for CPA if not Base Date as defined (refer note 4) | G42: Base Date Index (refer note 5) | H42: Historical data provided (Yes or No- provide http link) | I42: yy/mm/dd | J42: yy/mm/dd | K42: yy/mm/dd | L42: yy/mm/dd | M42: yy/mm/dd | N42: yy/mm/dd
A43: A1
A44: A2
A45: A3
A46: A4
A47: A5
A48: A6 | B48: 15% | C48: Fixed 15% minimum not subject to CPA (0.150)
B49: =SUM(B43:B48) -> 15% | C49: Total | D49: This Total is to add up to 100% for each CPA formula submitted by tenderer
A52: Formula B | B52: Tenderer's description of Formula B
A53: Index Ref. | B53: Proportions / weightings for each index (refer note 1) | C53: Description / scope of index (e.g. Labour) | D53: Title/Definition : Linked to the index, e.g., Table C3, All hourly paid employees. Must be completely defined | E53: Source/publisher of index (e.g. SEIFSA, StatsSA, LME) | F53: Base Month for CPA if not Base Date as defined (refer note 4) | G53: Base Date Index (refer note 5) | H53: Historical data provided (Yes or No- provide Internet address) | I53: yy/mm/dd | J53: yy/mm/dd | K53: yy/mm/dd | L53: yy/mm/dd | M53: yy/mm/dd | N53: yy/mm/dd
A54: B1
A55: B2
A56: B3
A57: B4
A58: B5
A59: B6 | B59: 15% | C59: Fixed 15% minimum not subject to CPA (0.150)
B60: =SUM(B54:B59) -> 15% | C60: Total | D60: This Total is to add up to 100% for each CPA formula submitted by tenderer
A63: Formula C | B63: Tenderer's description of Formula C
A64: Index Ref. | B64: Proportions / weightings for each index (refer note 1) | C64: Description / scope of index (e.g. Labour) | D64: Title/Definition : Linked to the index, e.g., Table C3, All hourly paid employees. Must be completely defined | E64: Source/publisher of index (e.g. SEIFSA, StatsSA, LME) | F64: Base Month for CPA if not Base Date as defined (refer note 4) | G64: Base Date Index (refer note 5) | H64: Historical data provided (Yes or No- provide Internet address) | I64: yy/mm/dd | J64: yy/mm/dd | K64: yy/mm/dd | L64: yy/mm/dd | M64: yy/mm/dd | N64: yy/mm/dd
A65: C1
A66: C2
A67: C3
A68: C4
A69: C5
A70: C6 | B70: 15% | C70: Fixed 15% minimum not subject to CPA (0.150)
B71: =SUM(B65:B70) -> 15% | C71: Total | D71: This Total is to add up to 100% for each CPA formula submitted by tenderer
A74: Formula D | B74: Tenderer's description of Formula D
A75: Index Ref. | B75: Proportions / weightings for each index (refer note 1) | C75: Description / scope of index (e.g. Labour) | D75: Title/Definition : Linked to the index, e.g., Table C3, All hourly paid employees. Must be completely defined | E75: Source/publisher of index (e.g. SEIFSA, StatsSA, LME) | F75: Base Month for CPA if not Base Date as defined (refer note 4) | G75: Base Date Index (refer note 5) | H75: Historical data provided (Yes or No- provide Internet address) | I75: yy/mm/dd | J75: yy/mm/dd | K75: yy/mm/dd | L75: yy/mm/dd | M75: yy/mm/dd | N75: yy/mm/dd
A76: D1
A77: D2
A78: D3
A79: D4
A80: D5
A81: D6 | B81: 15% | C81: Fixed 15% minimum not subject to CPA (0.150)
B82: =SUM(B76:B81) -> 15% | C82: Total | D82: This Total is to add up to 100% for each CPA formula submitted by tenderer
A85: Formula E | B85: Tenderer's description of Formula E
A86: Index Ref. | B86: Proportions / weightings for each index (refer note 1) | C86: Description / scope of index (e.g. Labour) | D86: Title/Definition : Linked to the index, e.g., Table C3, All hourly paid employees. Must be completely defined | E86: Source/publisher of index (e.g. SEIFSA, StatsSA, LME) | F86: Base Month for CPA if not Base Date as defined (refer note 4) | G86: Base Date Index (refer note 5) | H86: Historical data provided (Yes or No- provide Internet address) | I86: yy/mm/dd | J86: yy/mm/dd | K86: yy/mm/dd | L86: yy/mm/dd | M86: yy/mm/dd | N86: yy/mm/dd
A87: E1
A88: E2
A89: E3
A90: E4
A91: E5
A92: E6 | B92: 15% | C92: Fixed 15% minimum not subject to CPA (0.150)
B93: =SUM(B87:B92) -> 15% | C93: Total | D93: This Total is to add up to 100% for each CPA formula submitted by tenderer
A96: Formula F | B96: Tenderer's description of Formula F
A97: Index Ref. | B97: Proportions / weightings for each index (refer note 1) | C97: Description / scope of index (e.g. Labour) | D97: Title/Definition : Linked to the index, e.g., Table C3, All hourly paid employees. Must be completely defined | E97: Source/publisher of index (e.g. SEIFSA, StatsSA, LME) | F97: Base Month for CPA if not Base Date as defined (refer note 4) | G97: Base Date Index (refer note 5) | H97: Historical data provided (Yes or No- provide Internet address) | I97: yy/mm/dd | J97: yy/mm/dd | K97: yy/mm/dd | L97: yy/mm/dd | M97: yy/mm/dd | N97: yy/mm/dd
A98: F1
A99: F2
A100: F3
A101: F4
A102: F5
A103: F6 | B103: 15% | C103: Fixed 15% minimum not subject to CPA (0.150)
B104: =SUM(B98:B103) -> 15% | C104: Total | D104: This Total is to add up to 100% for each CPA formula submitted by tenderer
A107: Formula G | B107: Tenderer's description of Formula G
A108: Index Ref. | B108: Proportions / weightings for each index (refer note 1) | C108: Description / scope of index (e.g. Labour) | D108: Title/Definition : Linked to the index, e.g., Table C3, All hourly paid employees. Must be completely defined | E108: Source/publisher of index (e.g. SEIFSA, StatsSA, LME) | F108: Base Month for CPA if not Base Date as defined (refer note 4) | G108: Base Date Index (refer note 5) | H108: Historical data provided (Yes or No- provide Internet address) | I108: yy/mm/dd | J108: yy/mm/dd | K108: yy/mm/dd | L108: yy/mm/dd | M108: yy/mm/dd | N108: yy/mm/dd
A109: G1
A110: G2
A111: G3
A112: G4
A113: G5
A114: G6 | B114: 15% | C114: Fixed 15% minimum not subject to CPA (0.150)
B115: =SUM(B109:B114) -> 15% | C115: Total | D115: This Total is to add up to 100% for each CPA formula submitted by tenderer
A118: Formula H | B118: Tenderer's description of Formula H
A119: Index Ref. | B119: Proportions / weightings for each index (refer note 1) | C119: Description / scope of index (e.g. Labour) | D119: Title/Definition : Linked to the index, e.g., Table C3, All hourly paid employees. Must be completely defined | E119: Source/publisher of index (e.g. SEIFSA, StatsSA, LME) | F119: Base Month for CPA if not Base Date as defined (refer note 4) | G119: Base Date Index (refer note 5) | H119: Historical data provided (Yes or No- provide Internet address) | I119: yy/mm/dd | J119: yy/mm/dd | K119: yy/mm/dd | L119: yy/mm/dd | M119: yy/mm/dd | N119: yy/mm/dd
A120: H1
A121: H2
A122: H3
A123: H4
A124: H5
A125: H6 | B125: 15% | C125: Fixed 15% minimum not subject to CPA (0.150)
B126: =SUM(B120:B125) -> 15% | C126: Total | D126: This Total is to add up to 100% for each CPA formula submitted by tenderer
A129: Formula I | B129: Tenderer's description of Formula I
A130: Index Ref. | B130: Proportions / weightings for each index (refer note 1) | C130: Description / scope of index (e.g. Labour) | D130: Title/Definition : Linked to the index, e.g., Table C3, All hourly paid employees. Must be completely defined | E130: Source/publisher of index (e.g. SEIFSA, StatsSA, LME) | F130: Base Month for CPA if not Base Date as defined (refer note 4) | G130: Base Date Index (refer note 5) | H130: Historical data provided (Yes or No- provide Internet address) | I130: yy/mm/dd | J130: yy/mm/dd | K130: yy/mm/dd | L130: yy/mm/dd | M130: yy/mm/dd | N130: yy/mm/dd
A131: I1
A132: I2
A133: I3
A134: I4
A135: I5
A136: I6 | B136: 15% | C136: Fixed 15% minimum not subject to CPA (0.150)
B137: =SUM(B131:B136) -> 15% | C137: Total | D137: This Total is to add up to 100% for each CPA formula submitted by tenderer
A140: Formula J | B140: Tenderer's description of Formula J
A141: Index Ref. | B141: Proportions / weightings for each index (refer note 1) | C141: Description / scope of index (e.g. Labour) | D141: Title/Definition : Linked to the index, e.g., Table C3, All hourly paid employees. Must be completely defined | E141: Source/publisher of index (e.g. SEIFSA, StatsSA, LME) | F141: Base Month for CPA if not Base Date as defined (refer note 4) | G141: Base Date Index (refer note 5) | H141: Historical data provided (Yes or No- provide Internet address) | I141: yy/mm/dd | J141: yy/mm/dd | K141: yy/mm/dd | L141: yy/mm/dd | M141: yy/mm/dd | N141: yy/mm/dd
A142: J1
A143: J2
A144: J3
A145: J4
A146: J5
A147: J6 | B147: 15% | C147: Fixed 15% minimum not subject to CPA (0.150)
B148: =SUM(B142:B147) -> 15% | C148: Total | D148: This Total is to add up to 100% for each CPA formula submitted by tenderer
